[Event "*** Titled Tuesday Blitz"]
[Site "Chess.com"]
[Date "2020.12.29"]
[Round "3"]
[White "ambaixador"]
[Black "Andrakhanova"]
[Result "1-0"]
[WhiteElo "2427"]
[BlackElo "2240"]
[TimeControl "180+1"]
[EndTime "10:28:19 PST"]
[Termination "ambaixador won by resignation"]

1. e4 {[%clk 0:03:00.9]} 1... c5 {[%clk 0:02:57.8]} 2. Nf3 {[%clk 0:03:00.6]}
2... e6 {[%clk 0:02:58.1]} 3. c3 {[%clk 0:02:47.6]} 3... Nf6 {[%clk 0:02:57]} 4.
d3 {[%clk 0:02:33.7]} 4... b6 {[%clk 0:02:54.5]} 5. g3 {[%clk 0:02:33.2]} 5...
Bb7 {[%clk 0:02:53.4]} 6. Bg2 {[%clk 0:02:33.1]} 6... Nc6 {[%clk 0:02:52.4]} 7.
O-O {[%clk 0:02:32.3]} 7... Be7 {[%clk 0:02:52]} 8. Qe2 {[%clk 0:02:29.7]} 8...
d5 {[%clk 0:02:50.5]} 9. e5 {[%clk 0:02:23.3]} 9... Nd7 {[%clk 0:02:49.5]} 10.
h4 {[%clk 0:02:23.1]} 10... Qc7 {[%clk 0:02:49.3]} 11. Re1 {[%clk 0:02:22.6]}
11... O-O-O {[%clk 0:02:47.3]} 12. a4 {[%clk 0:02:18.7]} 12... a5 {[%clk
0:02:45.7]} 13. Na3 {[%clk 0:02:16.4]} 13... Ba6 {[%clk 0:02:40.1]} 14. Nb5
{[%clk 0:02:14.8]} 14... Bxb5 {[%clk 0:02:39.5]} 15. axb5 {[%clk 0:02:15.7]}
15... Na7 {[%clk 0:02:34.9]} 16. b4 {[%clk 0:02:10.8]} 16... cxb4 {[%clk
0:02:31.6]} 17. cxb4 {[%clk 0:02:11.7]} 17... Bxb4 {[%clk 0:02:31.6]} 18. Bd2
{[%clk 0:02:08.2]} 18... Bxd2 {[%clk 0:02:24.6]} 19. Qxd2 {[%clk 0:02:09.1]}
19... Kb8 {[%clk 0:02:18.2]} 20. Rec1 {[%clk 0:02:00.7]} 20... Qb7 {[%clk
0:02:16.4]} 21. Qg5 {[%clk 0:01:56.3]} 21... g6 {[%clk 0:02:10.1]} 22. Nd4
{[%clk 0:01:52.2]} 22... h6 {[%clk 0:02:04.1]} 23. Qf4 {[%clk 0:01:47.8]} 23...
g5 {[%clk 0:01:59.3]} 24. hxg5 {[%clk 0:01:46]} 24... hxg5 {[%clk 0:02:00.2]}
25. Qxg5 {[%clk 0:01:46.9]} 25... Rdg8 {[%clk 0:01:54.7]} 26. Qe3 {[%clk
0:01:44.2]} 26... Rh5 {[%clk 0:01:47.6]} 27. Nc6+ {[%clk 0:01:41.6]} 27... Ka8
{[%clk 0:01:42.6]} 28. d4 {[%clk 0:00:58]} 28... Nxb5 {[%clk 0:01:30.7]} 29. Qe2
{[%clk 0:00:57.5]} 29... Na7 {[%clk 0:01:23.2]} 30. Nxa7 {[%clk 0:00:55.8]}
30... Kxa7 {[%clk 0:01:24.1]} 31. Qxh5 {[%clk 0:00:55.4]} 31... Nb8 {[%clk
0:01:14.2]} 32. Qe2 {[%clk 0:00:38.6]} 32... Nc6 {[%clk 0:01:09.4]} 33. Qd2
{[%clk 0:00:38.1]} 33... Rg4 {[%clk 0:01:01.2]} 34. Qc2 {[%clk 0:00:36.2]} 34...
Nxd4 {[%clk 0:00:57.9]} 35. Qd1 {[%clk 0:00:35.8]} 35... Qa6 {[%clk 0:00:12.1]}
36. Qxg4 {[%clk 0:00:34.4]} 36... Ne2+ {[%clk 0:00:11.5]} 37. Kh2 {[%clk
0:00:34.4]} 37... Nxc1 {[%clk 0:00:10.4]} 38. Rxc1 {[%clk 0:00:35.3]} 38... Qd3
{[%clk 0:00:10.8]} 39. Rc7+ {[%clk 0:00:34.1]} 39... Kb8 {[%clk 0:00:10.2]} 40.
Rxf7 {[%clk 0:00:33.9]} 1-0

[Event "*** Titled Tuesday Blitz"]
[Site "Chess.com"]
[Date "2020.12.29"]
[Round "3"]
[White "anpospan"]
[Black "juli2512"]
[Result "1-0"]
[WhiteElo "2327"]
[BlackElo "2097"]
[TimeControl "180+1"]
[EndTime "10:28:19 PST"]
[Termination "anpospan won by resignation"]

1. d4 {[%clk 0:02:56.3]} 1... f5 {[%clk 0:02:59.1]} 2. Nc3 {[%clk 0:02:55.3]}
2... Nf6 {[%clk 0:02:59.4]} 3. Bg5 {[%clk 0:02:55.1]} 3... e6 {[%clk 0:02:55.4]}
4. e4 {[%clk 0:02:54.5]} 4... fxe4 {[%clk 0:02:54.2]} 5. Nxe4 {[%clk 0:02:54.4]}
5... Be7 {[%clk 0:02:54.8]} 6. Bxf6 {[%clk 0:02:54.5]} 6... Bxf6 {[%clk
0:02:54.8]} 7. Nf3 {[%clk 0:02:54.8]} 7... O-O {[%clk 0:02:51.7]} 8. Bd3 {[%clk
0:02:54.4]} 8... Nc6 {[%clk 0:02:49.8]} 9. c3 {[%clk 0:02:53.5]} 9... d5 {[%clk
0:02:49]} 10. Ng3 {[%clk 0:02:53.4]} 10... e5 {[%clk 0:02:43.5]} 11. dxe5 {[%clk
0:02:51.5]} 11... Nxe5 {[%clk 0:02:43.1]} 12. Nxe5 {[%clk 0:02:50]} 12... Bxe5
{[%clk 0:02:42.7]} 13. O-O {[%clk 0:02:38.7]} 13... Qg5 {[%clk 0:02:29.1]} 14.
Qe2 {[%clk 0:02:25.6]} 14... c6 {[%clk 0:02:15.7]} 15. Rae1 {[%clk 0:02:23.7]}
15... Bd6 {[%clk 0:02:14.4]} 16. c4 {[%clk 0:02:11.4]} 16... Bg4 {[%clk
0:02:05.9]} 17. Qc2 {[%clk 0:02:08.5]} 17... Qh4 {[%clk 0:01:48.6]} 18. cxd5
{[%clk 0:02:00.6]} 18... cxd5 {[%clk 0:01:42.9]} 19. Qb3 {[%clk 0:01:59.7]}
19... Kh8 {[%clk 0:01:31.8]} 20. Qxd5 {[%clk 0:01:45.5]} 20... Rad8 {[%clk
0:01:16.6]} 21. Qe4 {[%clk 0:01:39.5]} 21... Bxg3 {[%clk 0:00:55.6]} 22. fxg3
{[%clk 0:01:20.6]} 22... Qh5 {[%clk 0:00:51.7]} 23. Rxf8+ {[%clk 0:01:17.2]}
23... Rxf8 {[%clk 0:00:50.6]} 24. h3 {[%clk 0:01:10.5]} 24... Qc5+ {[%clk
0:00:33.9]} 25. Qe3 {[%clk 0:01:00.6]} 25... Qxe3+ {[%clk 0:00:29.6]} 26. Rxe3
{[%clk 0:01:00.2]} 26... Bh5 {[%clk 0:00:29.6]} 27. g4 {[%clk 0:00:55]} 27...
Bf7 {[%clk 0:00:28.5]} 28. Rf3 {[%clk 0:00:47.4]} 28... Kg8 {[%clk 0:00:26]} 29.
b3 {[%clk 0:00:42.8]} 29... Rd8 {[%clk 0:00:20.5]} 30. Bxh7+ {[%clk 0:00:41.5]}
30... Kxh7 {[%clk 0:00:18.9]} 31. Rxf7 {[%clk 0:00:40.9]} 31... Rd1+ {[%clk
0:00:18.3]} 32. Kh2 {[%clk 0:00:40.3]} 32... Rd2 {[%clk 0:00:18.2]} 33. a4
{[%clk 0:00:39.9]} 33... b6 {[%clk 0:00:15.7]} 34. Rxa7 {[%clk 0:00:39.3]} 34...
Rd3 {[%clk 0:00:16.2]} 35. b4 {[%clk 0:00:38.1]} 35... Rb3 {[%clk 0:00:15.9]}
36. b5 {[%clk 0:00:38]} 36... Rb4 {[%clk 0:00:14.9]} 37. Ra6 {[%clk 0:00:37.6]}
37... g6 {[%clk 0:00:13.1]} 38. Rxb6 {[%clk 0:00:35.6]} 38... Rxa4 {[%clk
0:00:13.4]} 39. g5 {[%clk 0:00:35.5]} 39... Kg7 {[%clk 0:00:13]} 40. Rb7+ {[%clk
0:00:35.4]} 40... Kf8 {[%clk 0:00:12.6]} 41. b6 {[%clk 0:00:34.9]} 41... Ke8
{[%clk 0:00:11.8]} 42. Rh7 {[%clk 0:00:33.2]} 42... Rb4 {[%clk 0:00:11]} 43. b7
{[%clk 0:00:33.1]} 1-0

[Event "*** Titled Tuesday Blitz"]
[Site "Chess.com"]
[Date "2020.12.29"]
[Round "3"]
[White "Chessbard1972"]
[Black "TheCairnTerrier"]
[Result "1/2-1/2"]
[WhiteElo "2315"]
[BlackElo "2094"]
[TimeControl "180+1"]
[EndTime "10:28:23 PST"]
[Termination "Game drawn by repetition"]

1. d4 {[%clk 0:03:00.5]} 1... Nf6 {[%clk 0:02:59.5]} 2. c4 {[%clk 0:02:59.7]}
2... g6 {[%clk 0:02:59.8]} 3. Nf3 {[%clk 0:02:58.6]} 3... Bg7 {[%clk 0:03:00]}
4. g3 {[%clk 0:02:57.8]} 4... O-O {[%clk 0:02:58.8]} 5. Bg2 {[%clk 0:02:58.4]}
5... c6 {[%clk 0:02:52.7]} 6. Nc3 {[%clk 0:02:54.6]} 6... d5 {[%clk 0:02:52.7]}
7. cxd5 {[%clk 0:02:53]} 7... cxd5 {[%clk 0:02:52.3]} 8. Ne5 {[%clk 0:02:52.2]}
8... Nc6 {[%clk 0:02:42.1]} 9. Bg5 {[%clk 0:02:42.8]} 9... e6 {[%clk 0:02:34.4]}
10. e3 {[%clk 0:02:38.6]} 10... h6 {[%clk 0:02:32.1]} 11. Bxf6 {[%clk
0:02:37.9]} 11... Bxf6 {[%clk 0:02:32.4]} 12. Nxc6 {[%clk 0:02:37.6]} 12... bxc6
{[%clk 0:02:31.8]} 13. f4 {[%clk 0:02:36.5]} 13... c5 {[%clk 0:02:29.1]} 14.
dxc5 {[%clk 0:02:35.9]} 14... Bxc3+ {[%clk 0:02:19.3]} 15. bxc3 {[%clk 0:02:35]}
15... Qa5 {[%clk 0:02:18.7]} 16. Qd4 {[%clk 0:02:32.8]} 16... Ba6 {[%clk
0:02:17.7]} 17. Kf2 {[%clk 0:02:29.9]} 17... Rab8 {[%clk 0:02:17.2]} 18. Rhd1
{[%clk 0:02:17.2]} 18... Rb2+ {[%clk 0:02:12.9]} 19. Kg1 {[%clk 0:02:15.1]}
19... Rfb8 {[%clk 0:01:42.4]} 20. g4 {[%clk 0:02:03.3]} 20... Rxa2 {[%clk
0:01:39.6]} 21. Rxa2 {[%clk 0:01:53.9]} 21... Qxa2 {[%clk 0:01:40.5]} 22. Rd2
{[%clk 0:01:51.4]} 22... Qc4 {[%clk 0:01:22.4]} 23. Qe5 {[%clk 0:01:24.3]} 23...
Rb1+ {[%clk 0:01:19.6]} 24. Kf2 {[%clk 0:01:24.4]} 24... Qxc5 {[%clk 0:00:51.8]}
25. f5 {[%clk 0:01:19.6]} 25... gxf5 {[%clk 0:00:48.3]} 26. gxf5 {[%clk
0:01:19]} 26... Qc4 {[%clk 0:00:44.5]} 27. Rd4 {[%clk 0:00:50.5]} 27... Rb2+
{[%clk 0:00:18.5]} 28. Kg3 {[%clk 0:00:48.3]} 28... Rxg2+ {[%clk 0:00:17.9]} 29.
Kxg2 {[%clk 0:00:38.2]} 29... Qf1+ {[%clk 0:00:17.6]} 30. Kg3 {[%clk 0:00:37.2]}
30... Qg1+ {[%clk 0:00:17.8]} 31. Kf3 {[%clk 0:00:19.8]} 31... Qf1+ {[%clk
0:00:05.2]} 32. Kg3 {[%clk 0:00:17.2]} 32... Qg1+ {[%clk 0:00:04.7]} 33. Kf3
{[%clk 0:00:15.2]} 33... Qf1+ {[%clk 0:00:04.7]} 34. Kg3 {[%clk 0:00:14.9]}
1/2-1/2

[Event "*** Titled Tuesday Blitz"]
[Site "Chess.com"]
[Date "2020.12.29"]
[Round "3"]
[White "chess4life23"]
[Black "freshfoodcompany"]
[Result "0-1"]
[WhiteElo "2225"]
[BlackElo "2406"]
[TimeControl "180+1"]
[EndTime "10:28:25 PST"]
[Termination "freshfoodcompany won by resignation"]

1. d4 {[%clk 0:03:00.9]} 1... d5 {[%clk 0:02:59.7]} 2. c4 {[%clk 0:03:00.9]}
2... c6 {[%clk 0:03:00]} 3. e3 {[%clk 0:02:58.3]} 3... Nf6 {[%clk 0:02:59.3]} 4.
Nc3 {[%clk 0:02:57.8]} 4... Bg4 {[%clk 0:02:57.8]} 5. Qc2 {[%clk 0:02:56.4]}
5... e6 {[%clk 0:02:57.9]} 6. Bd3 {[%clk 0:02:56.1]} 6... Nbd7 {[%clk
0:02:54.9]} 7. Nge2 {[%clk 0:02:55.8]} 7... Bd6 {[%clk 0:02:53.7]} 8. Ng3 {[%clk
0:02:53.4]} 8... O-O {[%clk 0:02:52.1]} 9. f3 {[%clk 0:02:51.6]} 9... Bh5 {[%clk
0:02:44.1]} 10. Nxh5 {[%clk 0:02:18.4]} 10... Nxh5 {[%clk 0:02:43.6]} 11. Bxh7+
{[%clk 0:02:18.8]} 11... Kh8 {[%clk 0:02:43.1]} 12. Bd3 {[%clk 0:02:07.8]} 12...
Qh4+ {[%clk 0:02:41]} 13. Kd1 {[%clk 0:02:05]} 13... Ng3 {[%clk 0:02:39.2]} 14.
Re1 {[%clk 0:01:54.9]} 14... Qxh2 {[%clk 0:02:30.9]} 15. Qf2 {[%clk 0:01:54.2]}
15... g6 {[%clk 0:02:15]} 16. Kc2 {[%clk 0:01:38.1]} 16... dxc4 {[%clk
0:02:09.8]} 17. Bxc4 {[%clk 0:01:37.8]} 17... Nf5 {[%clk 0:01:58.6]} 18. f4
{[%clk 0:01:24.1]} 18... Qg3 {[%clk 0:01:48.9]} 19. Rh1+ {[%clk 0:01:15.2]}
19... Kg7 {[%clk 0:01:47.1]} 20. Qxg3 {[%clk 0:01:14.5]} 20... Nxg3 {[%clk
0:01:47.2]} 21. Rh3 {[%clk 0:01:15]} 21... Nf5 {[%clk 0:01:44.4]} 22. g4 {[%clk
0:01:10.9]} 22... Ne7 {[%clk 0:01:41.5]} 23. e4 {[%clk 0:00:51.6]} 23... Rh8
{[%clk 0:01:30.2]} 24. Rf3 {[%clk 0:00:47.1]} 24... Rh2+ {[%clk 0:01:28.8]} 25.
Bd2 {[%clk 0:00:47.3]} 25... Rah8 {[%clk 0:01:22.3]} 26. e5 {[%clk 0:00:47.2]}
26... Bc7 {[%clk 0:01:21.6]} 27. Raf1 {[%clk 0:00:45.7]} 27... Rg2 {[%clk
0:01:20]} 28. f5 {[%clk 0:00:30.6]} 28... exf5 {[%clk 0:01:18.7]} 29. gxf5
{[%clk 0:00:31.1]} 29... Nxf5 {[%clk 0:01:18.1]} 30. Rxf5 {[%clk 0:00:31.6]}
30... gxf5 {[%clk 0:01:17.9]} 31. Rxf5 {[%clk 0:00:32]} 31... f6 {[%clk
0:01:03.6]} 32. Be6 {[%clk 0:00:27.3]} 32... Rhh2 {[%clk 0:00:55.1]} 33. Ne4
{[%clk 0:00:25.8]} 33... Nxe5 {[%clk 0:00:51.6]} 34. dxe5 {[%clk 0:00:23.1]}
34... Bxe5 {[%clk 0:00:51.6]} 35. Kd3 {[%clk 0:00:20.3]} 35... Rh3+ {[%clk
0:00:48.5]} 36. Be3 {[%clk 0:00:08.4]} 36... Rhh2 {[%clk 0:00:43.9]} 37. Rf3
{[%clk 0:00:05.6]} 37... Rxb2 {[%clk 0:00:42.2]} 38. Bb3 {[%clk 0:00:04.8]}
38... a5 {[%clk 0:00:39.7]} 39. Bc5 {[%clk 0:00:02.1]} 39... a4 {[%clk 0:00:36]}
40. Bxa4 {[%clk 0:00:01.7]} 40... Rxa2 {[%clk 0:00:35.9]} 41. Bb3 {[%clk
0:00:02.1]} 41... Rab2 {[%clk 0:00:33.8]} 42. Bb4 {[%clk 0:00:01.9]} 42... Rxb3+
{[%clk 0:00:33.4]} 43. Kc4 {[%clk 0:00:02.6]} 43... Rxf3 {[%clk 0:00:33]} 0-1

[Event "*** Titled Tuesday Blitz"]
[Site "Chess.com"]
[Date "2020.12.29"]
[Round "3"]
[White "Vesper2018"]
[Black "onnoelgersma"]
[Result "0-1"]
[WhiteElo "2629"]
[BlackElo "2436"]
[TimeControl "180+1"]
[EndTime "10:28:26 PST"]
[Termination "onnoelgersma won on time"]

1. e4 {[%clk 0:03:00.9]} 1... c5 {[%clk 0:02:57.8]} 2. Nc3 {[%clk 0:03:00.3]}
2... e6 {[%clk 0:02:57.3]} 3. Nge2 {[%clk 0:02:55.6]} 3... Nf6 {[%clk
0:02:56.9]} 4. g3 {[%clk 0:02:50.7]} 4... Nc6 {[%clk 0:02:55.2]} 5. Bg2 {[%clk
0:02:48.5]} 5... Be7 {[%clk 0:02:54.2]} 6. d4 {[%clk 0:02:45.9]} 6... cxd4
{[%clk 0:02:42.4]} 7. Nxd4 {[%clk 0:02:45.8]} 7... a6 {[%clk 0:02:42.9]} 8. O-O
{[%clk 0:02:40.1]} 8... h5 {[%clk 0:02:42]} 9. Nxc6 {[%clk 0:02:29.2]} 9... bxc6
{[%clk 0:02:40.9]} 10. e5 {[%clk 0:02:29.4]} 10... Ng4 {[%clk 0:02:40]} 11. Qd4
{[%clk 0:02:13.9]} 11... Qa5 {[%clk 0:02:28.1]} 12. Ne4 {[%clk 0:01:46.8]} 12...
Qxe5 {[%clk 0:02:12]} 13. Qd3 {[%clk 0:01:42.4]} 13... Qf5 {[%clk 0:01:08.2]}
14. Qe2 {[%clk 0:01:31.5]} 14... d5 {[%clk 0:01:00.3]} 15. Nc3 {[%clk
0:01:27.6]} 15... a5 {[%clk 0:00:53.5]} 16. h3 {[%clk 0:01:17.9]} 16... Ba6
{[%clk 0:00:47.1]} 17. Qd1 {[%clk 0:00:54.3]} 17... Bc5 {[%clk 0:00:30.7]} 18.
Bf4 {[%clk 0:00:14.2]} 18... g5 {[%clk 0:00:22.5]} 19. hxg4 {[%clk 0:00:13.4]}
19... hxg4 {[%clk 0:00:22.2]} 20. Re1 {[%clk 0:00:13]} 20... Qh7 {[%clk
0:00:20]} 21. Re2 {[%clk 0:00:07.7]} 21... gxf4 {[%clk 0:00:17.3]} 22. gxf4
{[%clk 0:00:06.1]} 22... g3 {[%clk 0:00:17.1]} 23. Kf1 {[%clk 0:00:05.8]} 23...
gxf2 {[%clk 0:00:16.7]} 24. f5 {[%clk 0:00:04.8]} 24... Qxf5 {[%clk 0:00:15.5]}
25. Qd2 {[%clk 0:00:04.4]} 25... Bxe2+ {[%clk 0:00:11.6]} 26. Nxe2 {[%clk
0:00:04.2]} 26... Rh2 {[%clk 0:00:09.9]} 27. Nf4 {[%clk 0:00:04]} 27... Qe5
{[%clk 0:00:07.7]} 28. Rd1 {[%clk 0:00:02.8]} 28... Be3 {[%clk 0:00:07.5]} 29.
Nd3 {[%clk 0:00:02.4]} 29... Qg3 {[%clk 0:00:06.4]} 0-1

[Event "*** Titled Tuesday Blitz"]
[Site "Chess.com"]
[Date "2020.12.29"]
[Round "3"]
[White "SaraciNderim"]
[Black "maximnovik"]
[Result "1-0"]
[WhiteElo "2838"]
[BlackElo "2611"]
[TimeControl "180+1"]
[EndTime "10:28:27 PST"]
[Termination "SaraciNderim won by resignation"]

1. d4 {[%clk 0:03:00.9]} 1... Nf6 {[%clk 0:02:59.2]} 2. Nf3 {[%clk 0:02:58.4]}
2... g6 {[%clk 0:02:59.2]} 3. g3 {[%clk 0:02:58.2]} 3... Bg7 {[%clk 0:02:59.2]}
4. Bg2 {[%clk 0:02:58.6]} 4... d5 {[%clk 0:02:59.5]} 5. O-O {[%clk 0:02:58.4]}
5... O-O {[%clk 0:03:00]} 6. c4 {[%clk 0:02:58.6]} 6... dxc4 {[%clk 0:02:58]} 7.
Na3 {[%clk 0:02:57.6]} 7... Nc6 {[%clk 0:02:56.9]} 8. Nxc4 {[%clk 0:02:55.6]}
8... Be6 {[%clk 0:02:57.3]} 9. b3 {[%clk 0:02:54]} 9... a5 {[%clk 0:02:56.5]}
10. Bb2 {[%clk 0:02:47.8]} 10... a4 {[%clk 0:02:55.7]} 11. Nfe5 {[%clk
0:02:07.8]} 11... Nxe5 {[%clk 0:02:32.6]} 12. dxe5 {[%clk 0:01:59.2]} 12... Nd5
{[%clk 0:02:27.8]} 13. bxa4 {[%clk 0:01:57.5]} 13... c6 {[%clk 0:02:17.5]} 14.
a5 {[%clk 0:01:54.5]} 14... Nc7 {[%clk 0:01:28.9]} 15. Qc2 {[%clk 0:01:39.1]}
15... Bxc4 {[%clk 0:01:26.2]} 16. Qxc4 {[%clk 0:01:40]} 16... Rxa5 {[%clk
0:01:25.3]} 17. Bc3 {[%clk 0:01:36.3]} 17... Ra6 {[%clk 0:01:11.4]} 18. Rfd1
{[%clk 0:01:32.5]} 18... Qc8 {[%clk 0:01:06.1]} 19. a4 {[%clk 0:01:26.8]} 19...
Rd8 {[%clk 0:00:58.1]} 20. Rxd8+ {[%clk 0:01:20.3]} 20... Qxd8 {[%clk
0:00:57.7]} 21. Rb1 {[%clk 0:01:20.7]} 21... Qc8 {[%clk 0:00:40.2]} 22. h4
{[%clk 0:01:11.5]} 22... h5 {[%clk 0:00:38.1]} 23. e3 {[%clk 0:00:59.7]} 23...
Qa8 {[%clk 0:00:28.3]} 24. Qb4 {[%clk 0:00:54.6]} 24... Ra7 {[%clk 0:00:19]} 25.
Qxe7 {[%clk 0:00:48.3]} 25... Ne6 {[%clk 0:00:17.6]} 26. a5 {[%clk 0:00:43.1]}
26... b5 {[%clk 0:00:16.2]} 27. Qd6 {[%clk 0:00:39.2]} 27... Ra6 {[%clk
0:00:16.3]} 28. Rxb5 {[%clk 0:00:34.4]} 28... Bf8 {[%clk 0:00:11.4]} 29. Qd1
{[%clk 0:00:23.9]} 29... cxb5 {[%clk 0:00:10.9]} 30. Bxa8 {[%clk 0:00:23.2]}
30... Rxa8 {[%clk 0:00:11.2]} 31. Qd5 {[%clk 0:00:21.8]} 31... Rb8 {[%clk
0:00:11.3]} 32. a6 {[%clk 0:00:20.7]} 32... b4 {[%clk 0:00:11.5]} 33. a7 {[%clk
0:00:20.2]} 33... Rd8 {[%clk 0:00:08.4]} 34. Qxd8 {[%clk 0:00:19.3]} 34... Nxd8
{[%clk 0:00:07.8]} 35. a8=Q {[%clk 0:00:19.3]} 1-0

[Event "*** Titled Tuesday Blitz"]
[Site "Chess.com"]
[Date "2020.12.29"]
[Round "3"]
[White "Barmen_EV"]
[Black "IMDT02"]
[Result "0-1"]
[WhiteElo "2340"]
[BlackElo "2539"]
[TimeControl "180+1"]
[EndTime "10:28:27 PST"]
[Termination "IMDT02 won on time"]

1. d4 {[%clk 0:03:00.9]} 1... Nf6 {[%clk 0:02:58.9]} 2. c4 {[%clk 0:02:58.9]}
2... e6 {[%clk 0:02:59.1]} 3. Nc3 {[%clk 0:02:59.2]} 3... d5 {[%clk 0:03:00]} 4.
cxd5 {[%clk 0:02:59.6]} 4... exd5 {[%clk 0:02:59]} 5. Bg5 {[%clk 0:02:59.9]}
5... c6 {[%clk 0:02:58]} 6. e3 {[%clk 0:03:00.3]} 6... Be7 {[%clk 0:02:57.2]} 7.
Bd3 {[%clk 0:03:00]} 7... Nbd7 {[%clk 0:02:56.2]} 8. Nge2 {[%clk 0:02:59.5]}
8... O-O {[%clk 0:02:55]} 9. Qc2 {[%clk 0:02:59.5]} 9... Re8 {[%clk 0:02:54.4]}
10. O-O {[%clk 0:02:58.9]} 10... Nf8 {[%clk 0:02:53.4]} 11. f3 {[%clk
0:02:59.4]} 11... Ng6 {[%clk 0:02:51.9]} 12. e4 {[%clk 0:02:57.9]} 12... dxe4
{[%clk 0:02:49.3]} 13. fxe4 {[%clk 0:02:58.8]} 13... Ng4 {[%clk 0:02:49.4]} 14.
Bxe7 {[%clk 0:02:58.2]} 14... Qxe7 {[%clk 0:02:50.3]} 15. Qd2 {[%clk 0:02:58.9]}
15... c5 {[%clk 0:02:37.8]} 16. Nd5 {[%clk 0:02:56.7]} 16... Qd6 {[%clk
0:02:33.4]} 17. Nef4 {[%clk 0:02:35.5]} 17... cxd4 {[%clk 0:02:29.1]} 18. Rac1
{[%clk 0:02:14.3]} 18... Nxf4 {[%clk 0:02:09.7]} 19. Rxf4 {[%clk 0:02:07.7]}
19... Ne3 {[%clk 0:01:55.7]} 20. Bb5 {[%clk 0:01:39.7]} 20... Nxd5 {[%clk
0:01:10.2]} 21. exd5 {[%clk 0:01:40.6]} 21... Re5 {[%clk 0:00:52.4]} 22. Rxd4
{[%clk 0:01:28.7]} 22... a6 {[%clk 0:00:47.5]} 23. Bc4 {[%clk 0:01:23.8]} 23...
Bd7 {[%clk 0:00:47]} 24. Bb3 {[%clk 0:01:14.5]} 24... Rae8 {[%clk 0:00:45.7]}
25. h3 {[%clk 0:01:11.4]} 25... Re2 {[%clk 0:00:42.1]} 26. Qf4 {[%clk
0:00:57.6]} 26... Qg6 {[%clk 0:00:26.1]} 27. Qf3 {[%clk 0:00:50.2]} 27... R8e3
{[%clk 0:00:21.2]} 28. Rg4 {[%clk 0:00:23.8]} 28... Qb6 {[%clk 0:00:12]} 29. Qf4
{[%clk 0:00:02]} 29... Re4+ {[%clk 0:00:07.8]} 0-1

[Event "*** Titled Tuesday Blitz"]
[Site "Chess.com"]
[Date "2020.12.29"]
[Round "3"]
[White "Anton_Zhukov04"]
[Black "szachuspl"]
[Result "1-0"]
[WhiteElo "2214"]
[BlackElo "2471"]
[TimeControl "180+1"]
[EndTime "10:28:27 PST"]
[Termination "Anton_Zhukov04 won by checkmate"]

1. d4 {[%clk 0:03:00.9]} 1... Nf6 {[%clk 0:02:58.9]} 2. c4 {[%clk 0:03:01.4]}
2... g6 {[%clk 0:02:59.1]} 3. Nc3 {[%clk 0:03:01.1]} 3... Bg7 {[%clk 0:02:59.3]}
4. Bf4 {[%clk 0:03:01]} 4... O-O {[%clk 0:02:58.4]} 5. e4 {[%clk 0:02:59.2]}
5... d6 {[%clk 0:02:57.1]} 6. Be2 {[%clk 0:02:59]} 6... Nc6 {[%clk 0:02:53.1]}
7. d5 {[%clk 0:02:57.6]} 7... Nb4 {[%clk 0:02:51.5]} 8. a3 {[%clk 0:02:53.7]}
8... Na6 {[%clk 0:02:50.5]} 9. Be3 {[%clk 0:02:53.5]} 9... c6 {[%clk 0:02:46.9]}
10. Nf3 {[%clk 0:02:48.1]} 10... cxd5 {[%clk 0:02:45.3]} 11. cxd5 {[%clk
0:02:45.7]} 11... Bg4 {[%clk 0:02:42.6]} 12. Nd2 {[%clk 0:02:45.1]} 12... Bxe2
{[%clk 0:02:42.3]} 13. Qxe2 {[%clk 0:02:46]} 13... Nd7 {[%clk 0:02:37.5]} 14.
Rc1 {[%clk 0:02:43.5]} 14... Rc8 {[%clk 0:02:25.6]} 15. O-O {[%clk 0:02:41.3]}
15... Bxc3 {[%clk 0:02:24]} 16. bxc3 {[%clk 0:02:38.3]} 16... Nac5 {[%clk
0:02:23.7]} 17. g3 {[%clk 0:02:31.5]} 17... Qa5 {[%clk 0:02:22.4]} 18. h4 {[%clk
0:02:28.1]} 18... a6 {[%clk 0:02:16.4]} 19. h5 {[%clk 0:02:27.2]} 19... Qa4
{[%clk 0:02:13.8]} 20. hxg6 {[%clk 0:02:22.4]} 20... fxg6 {[%clk 0:02:13.7]} 21.
Bd4 {[%clk 0:02:17.2]} 21... Ne5 {[%clk 0:02:08.7]} 22. Kg2 {[%clk 0:02:14.5]}
22... Rf7 {[%clk 0:01:51.5]} 23. Rb1 {[%clk 0:02:11.6]} 23... b5 {[%clk
0:01:48.2]} 24. f4 {[%clk 0:02:03.2]} 24... Ned7 {[%clk 0:01:40.6]} 25. Rh1
{[%clk 0:02:01.7]} 25... Qc2 {[%clk 0:01:37.9]} 26. Rbd1 {[%clk 0:01:44]} 26...
Qd3 {[%clk 0:01:36.7]} 27. Qg4 {[%clk 0:01:42.6]} 27... Nf6 {[%clk 0:01:31.7]}
28. Qxc8+ {[%clk 0:01:40.1]} 28... Rf8 {[%clk 0:01:31.7]} 29. Qh3 {[%clk
0:01:28.1]} 29... Qe2+ {[%clk 0:01:31.6]} 30. Bf2 {[%clk 0:01:26.6]} 30... Nd3
{[%clk 0:01:26]} 31. Rhf1 {[%clk 0:01:21.6]} 31... Nxf2 {[%clk 0:01:21.1]} 32.
Rxf2 {[%clk 0:01:04.9]} 32... Qxd1 {[%clk 0:01:21]} 33. e5 {[%clk 0:01:04.8]}
33... Ng4 {[%clk 0:01:13]} 34. Ne4 {[%clk 0:00:45.5]} 34... Nxf2 {[%clk
0:01:01.4]} 35. Kxf2 {[%clk 0:00:44.5]} 35... Qxd5 {[%clk 0:00:53.8]} 36. Ng5
{[%clk 0:00:42.5]} 36... h5 {[%clk 0:00:53.8]} 37. Qd7 {[%clk 0:00:39.9]} 37...
Qxe5 {[%clk 0:00:39.3]} 38. Ne6 {[%clk 0:00:32.4]} 38... Rf6 {[%clk 0:00:25.4]}
39. Qe8+ {[%clk 0:00:25.6]} 39... Kh7 {[%clk 0:00:24.9]} 40. Qxe7+ {[%clk
0:00:23.7]} 40... Kh6 {[%clk 0:00:10.9]} 41. Qg7# {[%clk 0:00:21.5]} 1-0